Cogmind - Beta 12 X1 @@@ ROGUE MODE // 2022.08.30 @ 10:34:48 Player: btmk16 Result: Self-destructed Performance ------------- Evolutions (4) 2000 Regions Visited (5) 1000 Robots Destroyed (12) 60 Value Destroyed (322) 322 Prototype IDs (3) 60 Alien Tech Used (0) 0 Bonus (1355) 1355 TOTAL SCORE: 4797 Bonus ------- Pacifist 1325 High Alert Combat Kills 30 Cogmind --------- Core Integrity 676/850 Matter 1/300 Energy 100/100 System Corruption 3% Temperature Cool (1) Movement Flying (35) Location -6/Factory Parts ------- > --- POWER (2) -------- (None) > --- PROPULSION (6) --- Aerolev Unit Cooled VTOL Module > --- UTILITY (5) ------ Improved Signal Interpreter Advanced Terrain Scan Processor Hacking Suite > --- WEAPON (2) ------- Mini Grenade Launcher > --- INVENTORY (5) ---- Aerolev Unit Peak State ------------ > --- POWER ------------ (None) > --- PROPULSION ------- Aerolev Unit Aerolev Unit Aerolev Unit Cesium-ion Thruster Cooled VTOL Module Biomechanical Wings > --- UTILITY ---------- Improved Signal Interpreter Advanced Terrain Scan Processor Hardened Light Armor Plating Hacking Suite > --- WEAPON ----------- Mini Grenade Launcher Mini Grenade Launcher > --- INVENTORY -------- Aerolev Unit Drone Bay [Rating: 42] Favorites ----------- Power None Propulsion Aerolev Unit Treads Light Treads Leg Titanium Leg Hover Unit Aerolev Unit Flight Unit Cesium-ion Thruster Utility Terrain Scan Processor Device Drone Bay Processor Terrain Scan Processor Hackware Hacking Suite Protection Hardened Light Armor Plating Weapon Light Assault Rifle Ballistic Gun Light Assault Rifle Launcher Mini Grenade Launcher Build | -11 -10 -9 -8 -7 -6 ------- Run | Scr Mat Mat Mat Fac Fac Slots Evolved 8 | . . 2 2 2 2 Power 1 | . . . . . 1 Propulsion 4 | . . 2 2 . . Utility 3 | . . . . 2 1 Weapon . | . . . . . . Parts Attached 29 | 4 2 1 2 12 8 Power . | . . . . . . Engine . | . . . . . . Core . | . . . . . . Reactor . | . . . . . . Propulsion 16 | 2 . 1 2 5 6 Treads 4 | 2 . . . 2 . Leg 2 | . . . 2 . . Wheel . | . . . . . . Hover 5 | . . 1 . 1 3 Flight 5 | . . . . 2 3 Utility 9 | . 2 . . 6 1 Device 1 | . . . . . 1 Storage . | . . . . . . Processor 5 | . 2 . . 3 . Hackware 2 | . . . . 2 . Protection 1 | . . . . 1 . Artifact . | . . . . . . Weapon 4 | 2 . . . 1 1 Energy Gun . | . . . . . . Energy Cannon . | . . . . . . Ballistic Gun 2 | 2 . . . . . Ballistic Cannon . | . . . . . . Launcher 2 | . . . . 1 1 Special Weapon . | . . . . . . Impact Weapon . | . . . . . . Slashing Weapon . | . . . . . . Piercing Weapon . | . . . . . . Special Melee Weapon . | . . . . . . Unidentified Prototypes 3 | . . . . 1 2 Corrupted Parts 2 | . . . . 2 . System Corruption 8 | . . . . 8 . Parts Lost 14 | . . . 1 4 9 Power . | . . . . . . Propulsion 9 | . . . 1 2 6 Utility 3 | . . . . 1 2 Weapon 2 | . . . . 1 1 Highest Loss Streak 7 | . . . 1 2 7 To Critical Strikes . | . . . . . . Average Slot Usage (%) 71 | . 66 71 75 71 70 Treads 12 | . 28 22 17 13 . Leg 6 | . . . 13 12 . Hover 10 | . . 5 9 7 19 Flight 5 | . . . . 2 14 Processor 17 | . 9 22 18 22 13 Hackware 2 | . . . . 1 6 Protection 1 | . . . . . 4 Ballistic Gun 8 | . 28 22 18 2 . Launcher 5 | . . . . 6 10 Naked Turns . | . . . . . . Heaviest Build 7 | 2 2 2 2 6 7 Greatest Support 40 | 3 3 7 40 11 24 Greatest Overweight (x) . | . . . . . . Average Overweight (x) . | . . . . . . Largest Inventory Capacity 5 | 5 5 5 5 5 5 Average Capacity 5 | 5 5 5 5 5 5 Most Carried 5 | 4 5 5 5 5 3 Average Carried 3 | 2 4 5 5 4 1 Final Capacity 5 | 5 5 5 5 5 5 Final Carried 5 | 4 5 5 5 4 1 Class Distribution -------------------- 94% | Mutant 5% | Sprinter Dominant Class ---------------- Mutant | -10/Materials Mutant | -9/Materials Mutant | -8/Materials Mutant | -7/Factory Mutant | -6/Factory Resources | -11 -10 -9 -8 -7 -6 ----------- Run | Scr Mat Mat Mat Fac Fac Matter Collected 212 | 182 . . . 30 . Remotely . | . . . . . . Salvage Created 151 | . . . . . 151 Parts 19 | . . . . . 19 Haulers Intercepted . | . . . . . . Recyclers Shooed . | . . . . . . Parts Field Recycled . | . . . . . . Retrieved Matter . | . . . . . . Parts Self-Destructed . | . . . . . . Prevented . | . . . . . . Kills | -11 -10 -9 -8 -7 -6 ------- Run | Scr Mat Mat Mat Fac Fac Combat Hostiles Destroyed 11 | . . . . . 11 AOE 11 | . . . . . 11 Classes Destroyed 2 | . . . . . 2 Builder 1 | . . . . . 1 Swarmer 11 | . . . . . 11 Best Kill Streak 8 | . . . . . 8 Combat Bots Only 7 | . . . . . 7 Max Kills in Single Turn 4 | . . . . . 4 Gunslinging . | . . . . . . Exploded 4 | . . . . . 4 Melee . | . . . . . . Uniques/NPCs Destroyed . | . . . . . . Combat | -11 -10 -9 -8 -7 -6 -------- Run | Scr Mat Mat Mat Fac Fac Damage Taken 1820 | . 74 97 358 333 958 Core 302 | . 11 43 56 18 174 Absorbed by Shields 46 | . . . . . 46 Core Remaining (%) 94 | 100 95 89 89 97 . Volleys Fired 11 | . . 2 . . 9 Largest 2 | . . 2 . . 2 Hottest 60 | . . 40 . . 60 Shots Fired 20 | . . 4 . . 16 Gun 4 | . . 4 . . . Cannon . | . . . . . . Launcher 16 | . . . . . 16 Special . | . . . . . . Kinetic 4 | . . 4 . . . Thermal . | . . . . . . Explosive 16 | . . . . . 16 Electromagnetic . | . . . . . . Robot Hit Streak 3 | . . . . . 3 Robot Miss Streak 5 | . . 4 . . 5 Penetration Max . | . . . . . . Secondary Targets . | . . . . . . Shots Hit Robots 3 | . . . . . 3 Core Hits 21 | . . . 3 1 17 Critical Kills . | . . . . . . Critical Parts Destroyed . | . . . . . . Critical Strikes . | . . . . . . Melee Attacks . | . . . . . . Impact . | . . . . . . Slashing . | . . . . . . Piercing . | . . . . . . Sneak Attacks . | . . . . . . Combat Hostiles . | . . . . . . Follow-up Attacks . | . . . . . . Damage Inflicted 896 | . 1 . 16 20 859 Guns . | . . . . . . Cannons . | . . . . . . Explosions 859 | . . . . . 859 Melee . | . . . . . . Ramming 37 | . 1 . 16 20 . Kinetic . | . . . . . . Thermal . | . . . . . . Explosive 859 | . . . . . 859 Electromagnetic . | . . . . . . Impact . | . . . . . . Slashing . | . . . . . . Piercing . | . . . . . . Highest Corruption 8 | . . . . 8 3 Average Corruption 2 | . . . . 6 2 Corruption Purged . | . . . . . . Corruption Blocked . | . . . . . . Effects 2 | . . . . . 2 Message Errors 2 | . . . . . 2 Overload Shots . | . . . . . . Overflow Damage 17 | . . . . . 17 Projectiles . | . . . . . . Explosions 17 | . . . . . 17 Melee . | . . . . . . Knockbacks . | . . . . . . Impact . | . . . . . . Kinetic . | . . . . . . Secondary . | . . . . . . Self-Inflicted Damage 160 | . . . . 9 151 Shots 5 | . . . . . 5 Rammed 20 | . 1 . 17 2 . Targets Rammed 20 | . 1 . 17 2 . Kicked . | . . . . . . Crushed . | . . . . . . Highest Temperature 5 | . . . 5 . . Average Temperature 5 | . . . 5 . . Received Heat Transfer 399 | . 42 54 207 54 42 Siege Activations . | . . . . . . Robots Corrupted . | . . . . . . Combat Hostiles . | . . . . . . Parts Fried . | . . . . . . Impact Corruptions . | . . . . . . Robots Melted . | . . . . . . Combat Hostiles . | . . . . . . Parts Melted . | . . . . . . Heat Transferred . | . . . . . . Parts Sabotaged . | . . . . . . Parts Stolen . | . . . . . . Parts Stripped . | . . . . . . Power Chain Reactions . | . . . . . . Missiles Intercepted . | . . . . . . Alert | -11 -10 -9 -8 -7 -6 ------- Run | Scr Mat Mat Mat Fac Fac Peak Influence 512 | . 15 65 77 55 512 Initial 30 | . . 5 27 30 16 Average 96 | . 8 40 57 29 269 Maximum Alert Level 2 | . . . . . 2 Low Security (%) 82 | 100 100 100 100 100 35 Level 1 11 | . . . . . 43 Level 2 5 | . . . . . 20 Level 3 . | . . . . . . Level 4 . | . . . . . . Level 5 . | . . . . . . High Security . | . . . . . . Max Security . | . . . . . . Squads Dispatched 10 | . 1 2 3 2 2 Investigation 5 | . 1 1 1 1 1 Extermination . | . . . . . . Reinforcement 5 | . . 1 2 1 1 Assault . | . . . . . . Garrison . | . . . . . . Intercept . | . . . . . . Searches Triggered . | . . . . . . Construction Impeded . | . . . . . . Haulers Reinforced . | . . . . . . Active Scanning Responses . | . . . . . . Cargo Convoy Interrupts . | . . . . . . Stealth | -11 -10 -9 -8 -7 -6 --------- Run | Scr Mat Mat Mat Fac Fac Distress Signals 2 | . . . . . 2 Communications Jammed . | . . . . . . Distress Signals . | . . . . . . Times Spotted 58 | . 7 7 6 8 30 Peak Tracking Total 8 | . 7 6 4 4 8 Tactical Retreats 6 | . . . . 1 5 Traps | -11 -10 -9 -8 -7 -6 ------- Run | Scr Mat Mat Mat Fac Fac Traps Triggered 4 | . . . . 1 3 Indirectly . | . . . . . . Trap Hack Attempts . | . . . . . . Triggered . | . . . . . . Disarmed . | . . . . . . Reprogrammed . | . . . . . . Reused . | . . . . . . Traps Extracted . | . . . . . . Installed . | . . . . . . Triggered . | . . . . . . Machines | -11 -10 -9 -8 -7 -6 ---------- Run | Scr Mat Mat Mat Fac Fac Machines Disabled 2 | . . . . . 2 Max in Single Turn 2 | . . . . . 2 Machines Sabotaged . | . . . . . . Garrisons Compromised . | . . . . . . Overloaded Fab Kills . | . . . . . . Hacking | -11 -10 -9 -8 -7 -6 --------- Run | Scr Mat Mat Mat Fac Fac Machines Accessed 8 | . 3 1 2 1 1 Terminals 8 | . 3 1 2 1 1 Fabricators . | . . . . . . Repair Stations . | . . . . . . Recycling Units . | . . . . . . Scanalyzers . | . . . . . . Garrison Access . | . . . . . . Total Hacks 27 | . 10 2 9 3 3 Successful 10 | . 3 . 3 2 2 Failed 17 | . 7 2 6 1 1 Catastrophic 3 | . . 1 1 . 1 Database Lockouts . | . . . . . . Manual 18 | . 10 . 5 1 2 Terminals 27 | . 10 2 9 3 3 Fabricators . | . . . . . . Repair Stations . | . . . . . . Recycling Units . | . . . . . . Scanalyzers . | . . . . . . Garrison Access . | . . . . . . Terminal Hacks 5 | . 1 . 2 1 1 Branch Access Points 2 | . . . 1 . 1 Emergency Access Points 1 | . 1 . . . . Alert Level 1 | . . . . 1 . Zone Layout 1 | . . . 1 . . Fabricator Hacks . | . . . . . . Repair Station Hacks . | . . . . . . Recycling Unit Hacks . | . . . . . . Scanalyzer . | . . . . . . Garrison Access Hacks . | . . . . . . Unauthorized Hacks 5 | . 2 . 1 1 1 Terminals 5 | . 2 . 1 1 1 Botnet 5 | . 2 . 1 1 1 Fabricators . | . . . . . . Repair Stations . | . . . . . . Recycling Units . | . . . . . . Scanalyzers . | . . . . . . Garrison Access . | . . . . . . Data Cores Recovered . | . . . . . . Used . | . . . . . . Hacking Detections 8 | . 3 1 2 1 1 Full Trace Events 6 | . 2 1 1 1 1 Feedback Events 2 | . . . . 1 1 Corruption 1 | . . . . . 1 Hackware Fried 1 | . . . . 1 . Feedback Blocked . | . . . . . . Robot Schematics Acquired . | . . . . . . Robots Built . | . . . . . . Authchips . | . . . . . . Time . | . . . . . . Total Robot Build Rating . | . . . . . . Part Schematics Acquired . | . . . . . . Parts Built . | . . . . . . Authchips . | . . . . . . Time . | . . . . . . Total Part Build Rating . | . . . . . . Parts Repaired . | . . . . . . Time . | . . . . . . Parts Recycled . | . . . . . . Recycled Matter . | . . . . . . Retrieved Matter . | . . . . . . Retrieved Components . | . . . . . . Parts Scanalyzed . | . . . . . . Part Schematics Acquired . | . . . . . . Parts Damaged . | . . . . . . Bothacking | -11 -10 -9 -8 -7 -6 ------------ Run | Scr Mat Mat Mat Fac Fac Used RIF Installer . | . . . . . . Robots Hacked . | . . . . . . Non-combat . | . . . . . . Combat . | . . . . . . Robot Hacks Applied . | . . . . . . Relay Couplers Released . | . . . . . . Fabnet Peak Effective % . | . . . . . . Robots Rewired . | . . . . . . Allies Hacked . | . . . . . . Hacks Repelled . | . . . . . . Allies | -11 -10 -9 -8 -7 -6 -------- Run | Scr Mat Mat Mat Fac Fac Total Allies . | . . . . . . Largest Group . | . . . . . . Highest-Rated Group . | . . . . . . Highest-Rated Ally . | . . . . . . Total Orders . | . . . . . . Ally Attacks . | . . . . . . Total Damage . | . . . . . . Kills . | . . . . . . Allies Corrupted . | . . . . . . Allies Melted . | . . . . . . Intel | -11 -10 -9 -8 -7 -6 ------- Run | Scr Mat Mat Mat Fac Fac Robot Analysis Total . | . . . . . . Derelict Logs Recovered . | . . . . . . Drone Launches . | . . . . . . Drone Recoveries . | . . . . . . Exploration | -11 -10 -9 -8 -7 -6 ------------- Run | Scr Mat Mat Mat Fac Fac Turns Passed 665 | 27 61 54 90 253 180 Spaces Moved 1163 | 34 110 78 113 456 372 Core 700 | 34 110 62 110 384 . Treads 3 | . . . 3 . . Legs . | . . . . . . Wheels . | . . . . . . Hover 41 | . . 16 . . 25 Flight 419 | . . . . 72 347 Fastest Speed 30 | 50 50 50 50 34 30 Average Speed 44 | 50 50 60 52 47 33 Slowest Speed 160 | 50 50 100 160 50 42 Overloaded Moves . | . . . . . . Propulsion Burnouts . | . . . . . . Robots Hopped 3 | . . . . . 3 Cave-ins Triggered . | . . . . . . Exploration Rate (%) 16 | 4 28 14 19 15 18 Regions Visited 5 Branch Regions . Pre-discovered Areas . | . . . . . . Known Exits Taken 1 | . . . . 1 . Unknown Exits Taken 4 | 1 1 1 1 . . Scrap Searched . | . . . . . . Spaces Dug . | . . . . . . Terrain Destroyed 105 | . . . . . 105 Melee . | . . . . . . Projectile . | . . . . . . AOE 105 | . . . . . 105 Terrain Rammed . | . . . . . . Walls Destroyed . | . . . . . . Machines Disabled . | . . . . . . Actions | -11 -10 -9 -8 -7 -6 --------- Run | Scr Mat Mat Mat Fac Fac Total 1265 | 41 113 80 131 491 409 Wait 4 | . . . . 4 . Move 1152 | 33 109 77 112 455 366 Hop 3 | . . . . . 3 Pick Up 14 | 4 1 . . 8 1 Fast Attach 19 | 4 2 1 2 7 3 Attach 7 | . . . . 2 5 Detach 1 | . . . . . 1 Swap 3 | . . . . 3 . Drop 10 | . . . . 10 . Fire 11 | . . 2 . . 9 Melee . | . . . . . . Ram 2 | . . . . 2 . Kick . | . . . . . . Crush 18 | . 1 . 17 . . Escape Stasis 21 | . . . . . 21 Rewire . | . . . . . . Trap . | . . . . . . Miscellaneous . | . . . . . . Route ------- -11/Scrapyard -10/Materials -9/Materials -8/Materials (discovered 3 exits: *Fac / Sto x2) -7/Factory -6/Factory (discovered 4 exits: Low x2 / Ext x2) History --------- Turn | Location | Event 15 | -11/Scrapyard | Discovered new exit (range 15) 28 | -11/Scrapyard | Entered Materials 81 | -10/Materials | Discovered new exit (range 16) 89 | -10/Materials | Entered another Materials area 89 | -9/Materials | Evolved 2 slots: Propulsion x2 138 | -9/Materials | Discovered new exit (range 9) 143 | -9/Materials | Entered another Materials area 143 | -8/Materials | Evolved 2 slots: Propulsion x2 158 | -8/Materials | Identified exit to Storage 229 | -8/Materials | Discovered new exit (range 5) 233 | -8/Materials | Entered Factory 233 | -7/Factory | Evolved 2 slots: Utility x2 324 | -7/Factory | Build established: Mutant 460 | -7/Factory | System Shield fried by hacking feedback 483 | -7/Factory | Discovered new exit (range 9) 485 | -7/Factory | Identified exit to Factory 486 | -7/Factory | Entered another Factory area 486 | -6/Factory | Evolved 2 slots: Power x1, Utility x1 496 | -6/Factory | Identified exit to Lower Caves 496 | -6/Factory | Identified exit to Extension 595 | -6/Factory | Spotted B-75 Beast 655 | -6/Factory | Destroyed 7 combat bots 666 | -6/Factory | Self-destructed Last Messages --------------- 00634_ S-27 Virus destroyed. 00634_ U-05 Engineer destroyed. 00634_ Destroyed VTOL Module. 00634_ Mni. Grenade Launcher destroyed. 00634_ Destroyed Mni. Grenade Launcher. 00636_ U-05 Engineer lays Concrete. 00637_ EXR LRPRY> 9WZI6WSS,VAUCN,H= #PY%VC=H 00637_ K-01 Serf collects debris. 00637_ U-05 Engineer lays Concrete. 00638_ The unstable cave ceiling collapses. 00639_ U-05 Engineer lays Concrete. 00641_ K-01 Serf collects debris. 00649_ O-24 Administrator: "IFF HANDSHAKE FAILED. SECURING TERMINAL." 00649_ Drone Bay destroyed. 00652_ Biomechanical Wings destroyed. 00654_ Aerolev Unit destroyed. 00658_ K-01 Serf cleans the Fusion Modulator. 00658_ K-01 Serf collects debris. 00659_ ALERT: Hostiles spotted, dispatching reinforcements to Terminal F012. Map ----- +----------------------------------------------------+ | ????????# #??# """" """" #???????????????????" / | | ?????#### #### #??????????????????? ?#?? | | ?????+ + #???????????????????????? | | ?????####### # ! #???????????????????????? | | ???????????# ######+##########???????????????????? | | ??????????## #??# # """ #???????????????????? | | ?????????## ### # """ #???????????????????? | | ??????? + """ #???????????????????? | | ?????????## ### # #???????????????????? | | ??????????##+#??# # #???????????????????? | | ????????????????### ###? #???????????????????? | | ??????????????????# ##########???????????????????? | | ??????????????????# ??????????????? | | ??????????????????# ######?????????????????????? | | ??????#???????????# ###?#??#???????????????????? | | ??????# ????????### # """ #???????????????????? | | ???#+###/######## # "T" #???????????????????? | | ?? ! # " " #???????????????????? | | ?? + o #???????????????????? | | ?? ![! # ! #???????????????????? | | ???##### !! # #???????????????????? | | ???????# !! ## # #???????????????????? | | ???????# ## ##??????????????????? | | ???????# """ !! ## ##?????????????????? | | ???????# """ !! ## #?????????????????? | | ???????# """ ! ## @ "" #?????????????????? | | ???????# # """#?????????????????? | | ???????+ """ """ ## R"#?????????????????? | | ???????# """ """ + """#?????????????????? | | ???????# """ """ #sss +?????????????????? | | ??????? #/##s###?????????????????? | | ???????? ? ? ???????????????????? | | ????????? ? ??????????????????? | | ??????????################## ?????????????????? | | ????????????????????????????? !????????????????? | | ?????????????????????????????? ???????????????? | | ??????????????????????????????? "??????????????? | | ??????????????????????????????? "??????????????? | | ???????????????????????????????? ?????????????? | | ???????????????????????????????? ""?????????????? | | ????????????????????????????????? ???????????????? | | ?????????????????????????????????????????????????? | | ?????????????????????????????????????????????????? | | ?????????????????????????????????????????????????? | | ?????????????????????????????????????????????????? | | ?????????????????????????????????????????????????? | | ?????????????????????????????????????????????????? | | ?????????????????????????????????????????????????? | | ?????????????????????????????????????????????????? | | ?????????????????????????????????????????????????? | +----------------------------------------------------+ Best States ------------- Heat Dissipation 37 Energy Generation 5 Energy Capacity 100 Matter Stores 262 Matter Capacity 300 Sight Range 16 Terrain Scan Density 285 Armor Coverage 150 Evasion (%) 64 Recoil Reduction 2 Offensive Hacking 10 Defensive Hacking 10 Item Schematics ----------------- None Robot Schematics ------------------ None Fabricated ------------ Nothing Alien Tech Used ----------------- None Achievements -------------- None Challenges ------------ None Game ------ Seed DeliveryThunderBrace Manual? 0 Play Time 00:14:23 Cumulative 470.7 hours Start 2022.08.30 @ 10:19:23 End 2022.08.30 @ 10:34:48 Sessions 1 Manual Loads 0 Difficulty Rogue Special Mode None Game No. 531 Rogue 530 Adventurer 0 Explorer 1 Win Type - Total 15 Types 10/0/2/3/0/0/0/0/0 Lore% 79 Gallery% 88 Achievement% 69 Wizard Run 0 Options --------- ASCII 0 Keyboard 1 Movement Vi Keybinds 0 Fullscreen 1 Font 18/SmallcapsGlow Map View 76x50 Tactical HUD 1 Map Filters NONE Filters NONE Steam 1 RUN: a65dbede-d2b9-4116-a830-866931d868bf